[Event "44th Chess Olympiad Women 2022"]
[Site "Chennai"]
[Date "2022.08.06"]
[Round "8.12"]
[White "Injac, Teodora"]
[Black "Sukandar, Irine Kharisma"]
[Result "0-1"]
[WhiteElo "2372"]
[BlackElo "2373"]
[Annotator "TA"]
[PlyCount "84"]
[EventDate "2022.??.??"]
[TimeControl "60"]

{[%evp 16,84,18,17,41,8,24,15,15,0,0,0,0,0,0,0,0,0,0,0,0,-16,0,-31,8,0,0,-32,4,
0,67,0,0,13,24,24,43,0,0,0,0,-29,-38,-28,0,0,-2,-217,-244,-236,-226,-226,-230,
-214,-218,-210,-16,-588,-580,-12834,-2136,-12841,-12841,-12842,-12842,-12843,
-12843,-12843,-12844,-12845,-12845]} 1. d4 {[%emt 0:00:06]} Nf6 {[%emt 0:00:39]
} 2. c4 {[%emt 0:00:09]} e6 {[%emt 0:00:18]} 3. Nc3 {[%emt 0:00:17]} d5 {
[%emt 0:02:37]} 4. cxd5 {[%emt 0:00:13]} exd5 {[%emt 0:00:05]} 5. Bg5 {[%emt 0:
00:00]} c6 {[%emt 0:00:25]} 6. e3 {[%emt 0:00:14]} Be7 {[%emt 0:01:33]} 7. Bd3
{[%emt 0:01:09]} Nbd7 {[%emt 0:01:28]} 8. Nf3 {[%emt 0:02:01]} Ne4 {[%emt 0:00:
00]} 9. Bf4 {[%emt 0:12:25]} (9. Nxe4 $2 dxe4 10. Bxe7 Qxe7 $19) 9... f5 {
[%emt 0:02:41] D35: Queen's Gambit Declined: Exchange Variation.} 10. Ne5 {
[%emt 0:06:21]} O-O {[%emt 0:03:26]} 11. O-O {[%emt 0:07:11]} Bf6 {[%emt 0:00:
00] [#] The position is equal.} 12. Qc2 $146 {[%emt 0:07:52]} ({Predecessor:} 
12. Nxd7 Qxd7 13. f3 Nd6 14. Qc2 Qe7 15. Rae1 Be6 16. Na4 Rad8 17. Nc5 Bc8 18.
Bxd6 Rxd6 19. Bxf5 Bxf5 20. Qxf5 {0-1 (31) Koykka,P (2238)-Blanche,P (2125)
Krakow 2011}) 12... Qe7 {[%emt 0:05:54][%cal Rd7e5]} 13. f3 {[%emt 0:08:12]} (
13. Nxe4 fxe4 14. Be2 Nxe5 15. dxe5 Bxe5 16. Bxe5 Qxe5 $17) 13... Nd6 {[%emt 0:
00:00][%cal Rd7e5]} 14. Nxd7 {[%emt 0:04:43]} Bxd7 {[%emt 0:04:53]} 15. Rae1 {
[%emt 0:00:31]} Rae8 {[%emt 0:02:56]} 16. Kh1 {[%emt 0:11:56]} Bc8 {[%emt 0:00:
00]} 17. a4 {[%emt 0:07:14]} a6 {[%emt 0:07:18]} 18. h3 {[%emt 0:03:36]} g6 {
[%emt 0:05:06]} 19. Re2 {[%emt 0:05:00]} Qd7 {[%emt 0:03:54]} 20. g4 {[%emt 0:
00:00]} Bg7 {[%emt 0:01:42]} 21. Ree1 {[%emt 0:02:26]} b5 {[%emt 0:02:00]} 22.
Qh2 {[%emt 0:01:29]} Nc4 {[%emt 0:02:01]} (22... Re6 $11) 23. b3 {[%emt 0:00:
00]} ({Better is} 23. gxf5 $14 Rxf5 24. Bxf5 Qxf5 25. axb5 axb5 26. h4) 23...
Na5 {[%emt 0:00:31]} 24. axb5 {[%emt 0:01:43]} axb5 {[%emt 0:02:21][%cal Rf5g4]
} (24... cxb5 {is interesting.} 25. Bc2 fxg4 26. hxg4 Re6) 25. gxf5 {[%emt 0:
00:00]} Nxb3 {[%emt 0:00:54]} 26. fxg6 {[%emt 0:03:41]} (26. Qa2 $5 {[%cal
Ra2b3]}) 26... Qxh3 {[%emt 0:01:51]} 27. gxh7+ {[%emt 0:00:20]} Kh8 {[%emt 0:
00:00]} 28. Qxh3 {[%emt 0:02:43]} Bxh3 {[%emt 0:00:02] Chess con chili.} 29.
Rg1 {[%emt 0:00:02] And now Bd6 would win.} Bf5 {[%emt 0:00:29]} (29... Nxd4 $5
30. Rxg7 Kxg7 31. Rg1+ Kh8 $17) 30. Bxf5 {[%emt 0:00:39]} Rxf5 {[%emt 0:00:03]
[%cal Yf8f5,Yf5h5,Yh5h7]} 31. Re2 $2 {[%emt 0:01:03]} (31. Ne2 $11) 31... b4 $1
$19 {[%emt 0:03:58]} 32. Reg2 {[%emt 0:00:09]} (32. Rb1 bxc3 33. Rxb3 Rxf4 34.
Rxc3 Bxd4 $19) 32... Rh5+ {[%emt 0:04:07]} 33. Bh2 {[%emt 0:00:00]} bxc3 {
[%emt 0:03:34]} 34. Rxg7 {[%emt 0:00:04] Strongly threatening Rg8+.} Rxh7 {
[%emt 0:00:10]} ({Much less strong is} 34... Rxe3 35. Rb7 Re8 36. Rg8+ (36.
Rxb3 Re2 $11) 36... Rxg8 37. hxg8=Q+ Kxg8 38. Rxb3 $18) 35. R7g6 {[%emt 0:00:
00] [#]} Nd2 $2 {[%emt 0:01:17]} (35... c2 36. Rxc6 c1=Q 37. Rgxc1 Nxc1 38.
Rxc1) (35... c5 $1 $19 {[%cal Rc5d4]} 36. Kg2 c2 37. Be5+ {[#]} Rxe5 $1 38.
dxe5 Rg7 39. Rxg7 Kxg7 40. Kf2+ Kf7) 36. Rxc6 $2 {[%emt 0:00:00]} (36. Kg2 $1
$11 {and White has nothing to worry.} Rxh2+ 37. Kxh2 Nxf3+ 38. Kg2 Nxg1 39.
Rh6+ Kg7 40. Rxc6) 36... Nxf3 {[%emt 0:00:13][%csl Gf3][%cal Rh7h2] Black is
clearly winning.} 37. Rg2 {[%emt 0:00:25]} Ra8 {[%emt 0:00:48] ( -> ...Ra1+)}
38. Re2 {[%emt 0:01:41]} Ra1+ {[%emt 0:00:54]} 39. Kg2 {[%emt 0:00:04]} Rxh2+ {
[%emt 0:00:16]} ({And not} 39... Nxh2 40. Rxc3 Rh6 41. Rc8+ Kh7 42. Rc7+ Kh8
43. Rc8+ Kh7 44. Rc7+ Kh8 45. Rc8+ $17) 40. Kxf3 {[%emt 0:00:09]} Rf1+ {
[%emt 0:00:10]} 41. Kg3 {[%emt 0:30:21]} Rxe2 {[%emt 0:00:00]} 42. Rxc3 {
[%emt 0:00:01]} Kg7 {[%emt 0:01:34] Weighted Error Value: White=0.69/Black=0.
17 (very precise)} 0-1

[Event "44th Chess Olympiad Women 2022"]
[Site "Chennai"]
[Date "2022.08.06"]
[Round "8.13"]
[White "Belenkaya, Dina"]
[Black "Agrest, Inna"]
[Result "0-1"]
[WhiteElo "2256"]
[BlackElo "2217"]
[Annotator "NA RC"]
[PlyCount "50"]
[EventDate "2022.??.??"]
[TimeControl "60"]

1. e4 {[%emt 0:00:03]} e5 {[%emt 0:00:09]} 2. Nf3 {[%emt 0:00:07]} Nc6 {
[%emt 0:00:13]} 3. d4 {[%emt 0:00:14]} exd4 {[%emt 0:00:27]} 4. Nxd4 {[%emt 0:
00:00]} Nf6 {[%emt 0:00:24]} 5. Nxc6 {[%emt 0:00:13]} bxc6 {[%emt 0:00:12]} 6.
Nd2 {[%emt 0:00:17]} Bc5 {[%emt 0:02:34]} 7. Bd3 {[%emt 0:00:10]} O-O {[%emt 0:
00:00]} 8. O-O {[%emt 0:00:10]} Re8 {[%emt 0:01:45]} 9. Nb3 {[%emt 0:00:35]}
Bb6 {[%emt 0:01:41]} 10. c4 {[%emt 0:01:04]} d6 {[%emt 0:04:01]} 11. Qc2 {
[%emt 0:02:54]} a5 {[%emt 0:07:53]} 12. Bg5 {[%emt 0:09:37]} h6 {[%emt 0:11:38]
} 13. Bh4 {[%emt 0:01:13]} a4 {[%emt 0:09:40]} 14. Nd2 {[%emt 0:00:37]} g5 {
[%emt 0:04:38]} 15. Bg3 {[%emt 0:01:37]} Nh5 {[%emt 0:01:21]} 16. Nf3 {[%emt 0:
00:00]} Bg4 {[%emt 0:03:44]} 17. Nd2 {[%emt 0:22:42]} Nxg3 {[%emt 0:12:53]} 18.
hxg3 {[%emt 0:00:01]} Qf6 {[%emt 0:00:15]} 19. Kh1 {[%emt 0:20:06]} h5 {
[%emt 0:08:01]} 20. f4 {[%emt 0:21:08]} h4 {[%emt 0:03:16]} 21. gxh4 {[%emt 0:
00:00]} gxf4 {[%emt 0:01:04]} 22. Nf3 {[%emt 0:01:27]} Ra5 {[%emt 0:04:27]} 23.
g3 {[%emt 0:02:25]} fxg3 {[%emt 0:02:25]} 24. Qg2 {[%emt 0:00:19]} Bxf3 {
[%emt 0:01:14]} 25. Qxf3 {[%emt 0:02:50]} Qxh4+ {[%emt 0:00:10]} 0-1

[Event "44th Chess Olympiad Women 2022"]
[Site "Chennai"]
[Date "2022.08.06"]
[Round "8.13"]
[White "Cramling Bellon, Anna"]
[Black "Klinova, Masha"]
[Result "1/2-1/2"]
[WhiteElo "2065"]
[BlackElo "2251"]
[Annotator "RC"]
[PlyCount "137"]
[EventDate "2022.??.??"]
[TimeControl "60"]

1. d4 {[%emt 0:00:04]} d6 {[%emt 0:00:04]} 2. Nf3 {[%emt 0:00:07]} g6 {[%emt 0:
00:00]} 3. c4 {[%emt 0:00:11]} Bg7 {[%emt 0:00:05]} 4. Nc3 {[%emt 0:00:40]} Nf6
{[%emt 0:01:23]} 5. e4 {[%emt 0:00:23]} O-O {[%emt 0:00:26]} 6. h3 {[%emt 0:00:
00]} c5 {[%emt 0:05:23]} 7. d5 {[%emt 0:00:16]} e6 {[%emt 0:04:57]} 8. Bd3 {
[%emt 0:00:28]} exd5 {[%emt 0:06:30]} 9. exd5 {[%emt 0:00:18]} Re8+ {[%emt 0:
00:00]} 10. Be3 {[%emt 0:00:17]} Na6 {[%emt 0:07:25]} 11. O-O {[%emt 0:02:39]}
Nc7 {[%emt 0:01:16]} 12. a4 {[%emt 0:06:56]} Nd7 {[%emt 0:06:24]} 13. Ne4 {
[%emt 0:22:23]} Ne5 {[%emt 0:02:19]} 14. Bg5 {[%emt 0:14:53]} f6 {[%emt 0:00:
00]} 15. Nxe5 {[%emt 0:05:32]} fxg5 {[%emt 0:07:24]} 16. Nf3 {[%emt 0:06:12]}
g4 {[%emt 0:05:16]} 17. Nfg5 {[%emt 0:00:21]} h6 {[%emt 0:01:28]} 18. Ne6 {
[%emt 0:00:11]} Nxe6 {[%emt 0:08:47]} 19. dxe6 {[%emt 0:00:07]} Bxe6 {[%emt 0:
00:00]} 20. hxg4 {[%emt 0:01:34]} Qh4 {[%emt 0:01:16]} 21. Be2 {[%emt 0:20:59]}
Rad8 {[%emt 0:02:13]} 22. g3 {[%emt 0:00:45]} Qe7 {[%emt 0:00:41]} 23. Nc3 {
[%emt 0:01:47]} Bd4 {[%emt 0:06:13]} 24. Qc2 {[%emt 0:05:10]} Qg5 {[%emt 0:00:
00]} 25. Ne4 {[%emt 0:08:05]} Qe5 {[%emt 0:01:27]} 26. Kg2 {[%emt 0:02:02]} d5
{[%emt 0:07:05]} 27. Nc3 {[%emt 0:00:14]} dxc4 {[%emt 0:01:17]} 28. Qxg6+ {
[%emt 0:00:15]} Qg7 {[%emt 0:00:04]} 29. Qxg7+ {[%emt 0:00:13]} Kxg7 {[%emt 0:
00:00]} 30. Bf3 {[%emt 0:00:57]} b6 {[%emt 0:01:22]} 31. a5 {[%emt 0:00:27]}
Re7 {[%emt 0:02:17]} 32. axb6 {[%emt 0:00:06]} axb6 {[%emt 0:00:03]} 33. Ra6 {
[%emt 0:01:17]} Rb8 {[%emt 0:00:57]} 34. Re1 {[%emt 0:00:25]} Kf8 {[%emt 0:00:
00]} 35. Re2 {[%emt 0:00:30]} Bf7 {[%emt 0:01:29]} 36. Rxe7 {[%emt 0:00:36]}
Kxe7 {[%emt 0:00:04]} 37. Ra7+ {[%emt 0:00:15]} Kf8 {[%emt 0:00:19]} 38. Ra8 {
[%emt 0:00:25]} Rxa8 {[%emt 0:00:09]} 39. Bxa8 {[%emt 0:00:12]} Be8 {[%emt 0:
00:00]} 40. Bd5 {[%emt 0:01:10]} b5 {[%emt 0:00:10]} 41. f4 {[%emt 0:15:15]}
Ke7 {[%emt 0:09:39]} 42. Kf3 {[%emt 0:02:52]} b4 {[%emt 0:02:01]} 43. Ne4 {
[%emt 0:12:18]} Bb5 {[%emt 0:03:34]} 44. g5 {[%emt 0:00:57]} hxg5 {[%emt 0:00:
00]} 45. fxg5 {[%emt 0:00:13]} Bxb2 {[%emt 0:00:26]} 46. g6 {[%emt 0:01:24]}
Be5 {[%emt 0:05:11]} 47. Nxc5 {[%emt 0:00:40]} c3 {[%emt 0:08:05]} 48. Bb3 {
[%emt 0:00:24]} Kf6 {[%emt 0:01:56]} 49. Bc2 {[%emt 0:00:08]} Be8 {[%emt 0:00:
00]} 50. Ne4+ {[%emt 0:01:11]} Kg7 {[%emt 0:00:25]} 51. Nc5 {[%emt 0:00:17]}
Bxg6 {[%emt 0:01:50]} 52. Bxg6 {[%emt 0:00:30]} Kxg6 {[%emt 0:00:03]} 53. Ke2 {
[%emt 0:00:12]} Bxg3 {[%emt 0:00:31]} 54. Kd3 {[%emt 0:00:42]} Bd6 {[%emt 0:00:
00]} 55. Nb3 {[%emt 0:00:07]} Kf5 {[%emt 0:00:11]} 56. Kc2 {[%emt 0:00:30]} Ke4
{[%emt 0:00:21]} 57. Na1 {[%emt 0:00:12]} Kd4 {[%emt 0:00:12]} 58. Nb3+ {
[%emt 0:00:19]} Kc4 {[%emt 0:00:30]} 59. Na1 {[%emt 0:00:12]} Kb5 {[%emt 0:00:
00]} 60. Nb3 {[%emt 0:01:18]} Ka4 {[%emt 0:00:07]} 61. Na1 {[%emt 0:00:08]} Ka3
{[%emt 0:00:57]} 62. Nb3 {[%emt 0:00:04]} Bc7 {[%emt 0:01:15]} 63. Na1 {
[%emt 0:00:25]} Bb6 {[%emt 0:01:01]} 64. Nb3 {[%emt 0:00:12]} Be3 {[%emt 0:00:
00]} 65. Na1 {[%emt 0:01:21]} Ka2 {[%emt 0:00:58]} 66. Nb3 {[%emt 0:00:07]} Bf4
{[%emt 0:00:28]} 67. Nc5 {[%emt 0:00:15]} Bc7 {[%emt 0:00:34]} 68. Nb3 {
[%emt 0:00:11]} Bb6 {[%emt 0:00:03]} 69. Nc1+ {[%emt 0:00:09]} 1/2-1/2

[Event "44th Chess Olympiad Women 2022"]
[Site "Chennai"]
[Date "2022.08.06"]
[Round "8.13"]
[White "Cramling, Pia"]
[Black "Efroimski, Marsel"]
[Result "1-0"]
[WhiteElo "2459"]
[BlackElo "2456"]
[Annotator "TA"]
[PlyCount "176"]
[EventDate "2022.??.??"]
[TimeControl "60"]

{[%evp 12,176,53,22,56,59,66,68,70,72,66,75,66,69,66,68,81,75,77,69,79,83,82,
76,80,77,71,75,82,68,77,63,74,64,72,52,79,56,87,71,83,70,68,48,79,78,70,56,57,
47,47,72,70,72,143,70,89,89,99,99,99,55,55,47,54,54,62,32,61,61,66,64,67,50,54,
48,52,41,48,39,41,43,44,31,33,33,58,52,77,68,65,32,40,24,52,33,28,30,67,65,57,
44,42,58,67,52,43,8,5,0,31,41,37,21,79,82,125,33,227,206,254,70,70,69,70,70,
156,156,156,156,185,185,185,160,160,161,370,365,550,550,601,524,525,531,494,
483,471,456,6725,1974,29966,29967,29970,29970,29971,29972,29972,29972,29972,
29973,29973,29974,29973,29973,29972,29973,29972]} 1. d4 {[%emt 0:00:03]} d5 {
[%emt 0:00:03]} 2. c4 {[%emt 0:00:07]} e6 {[%emt 0:00:03]} 3. Nc3 {[%emt 0:00:
00]} c5 {[%emt 0:00:32]} 4. cxd5 {[%emt 0:00:51]} cxd4 {[%emt 0:00:07]} 5. Qa4+
{[%emt 0:00:49]} Bd7 {[%emt 0:00:04]} 6. Qxd4 {[%emt 0:00:06]} exd5 {[%emt 0:
00:00]} 7. Nf3 {[%emt 0:03:20]} (7. Nxd5 Nc6 8. Qf4 Qa5+ 9. Nc3 (9. Qd2 Bb4 $17
) 9... Nb4 $11) 7... Be6 {[%emt 0:05:24] D32: Tarrasch Defence: Sidelines and
lines without g3.} 8. e4 {[%emt 0:12:44]} Nc6 {[%emt 0:01:26]} 9. Bb5 {[%emt 0:
00:00][%cal Re4d5]} dxe4 {[%emt 0:10:48] White is slightly better.} 10. Qxe4 {
[%emt 0:02:18] [#]} Nf6 $146 {[%emt 0:00:06]} ({Predecessor:} 10... Rc8 11. O-O
Nf6 12. Qe2 a6 13. Bxc6+ Rxc6 14. Bg5 Be7 15. Rfd1 Rd6 16. Rxd6 Qxd6 {0-1 (29)
Muradore,A (1544)-Capaliku,A (2107) Udine 2007}) 11. Bxc6+ {[%emt 0:01:14]}
bxc6 {[%emt 0:00:02]} 12. Qxc6+ {[%emt 0:00:19]} Bd7 {[%emt 0:00:36]} 13. Qa6 {
[%emt 0:01:05]} Be7 {[%emt 0:01:36]} 14. O-O {[%emt 0:00:28]} O-O {[%emt 0:00:
00]} 15. Re1 {[%emt 0:13:01]} Re8 {[%emt 0:01:55]} 16. Be3 {[%emt 0:06:02]} (
16. Bf4 {is more complex.} Bc8 17. Qc4 Bg4 18. Rad1) 16... Bc8 {[%emt 0:09:15]}
17. Qa4 {[%emt 0:02:21] 0x0.0002d811e739dp-1022s more active pieces.} Bd7 {
[%emt 0:00:48]} 18. Qf4 {[%emt 0:06:31]} Qb8 {[%emt 0:04:42]} 19. Qxb8 {
[%emt 0:01:33]} Raxb8 {[%emt 0:00:23]} 20. Bd4 {[%emt 0:03:20]} Be6 {[%emt 0:
00:00]} 21. Ng5 {[%emt 0:06:16]} Bf5 {[%emt 0:01:52]} 22. Re5 {[%emt 0:01:30]}
Bd7 {[%emt 0:04:24]} 23. Rae1 {[%emt 0:02:18][%cal Ya1e1,Ye1e2,Ye2d2]} Bd8 {
[%emt 0:01:41]} 24. R1e2 {[%emt 0:07:02]} a5 {[%emt 0:04:41]} 25. Rxe8+ {
[%emt 0:02:18]} Nxe8 {[%emt 0:01:00]} 26. Nf3 {[%emt 0:00:22]} f6 {[%emt 0:00:
00]} 27. Be3 {[%emt 0:03:23]} Kf7 {[%emt 0:06:17]} 28. Rd2 {[%emt 0:00:43]} Rb7
{[%emt 0:06:26]} 29. h3 {[%emt 0:00:33]} Be7 {[%emt 0:04:43]} 30. Nd5 {[%emt 0:
00:00]} Bf8 {[%emt 0:01:28]} 31. Nb6 {[%emt 0:03:07] Pair of Knights!} Be6 {
[%emt 0:00:19]} 32. b3 {[%emt 0:01:41]} Nd6 {[%emt 0:11:13] [#]} (32... Nc7
$142) 33. Na4 {[%emt 0:00:47]} ({White should try} 33. Nd4 $1 $16) 33... Ne4 {
[%emt 0:02:13]} 34. Rd4 {[%emt 0:09:20]} Nc5 {[%emt 0:01:37]} 35. Nxc5 {
[%emt 0:01:03]} Bxc5 {[%emt 0:00:04]} 36. Rh4 {[%emt 0:01:00]} Bd6 {[%emt 0:00:
00]} 37. Nd4 {[%emt 0:02:12]} Bd5 {[%emt 0:07:08]} 38. Nf5 {[%emt 0:01:40]} Bf8
{[%emt 0:04:20]} 39. Rd4 {[%emt 0:02:32]} Ke6 {[%emt 0:00:45]} 40. Rd1 {
[%emt 0:00:34]} g6 {[%emt 0:00:33]} 41. Nd4+ {[%emt 0:30:27]} Kf7 {[%emt 0:00:
00]} 42. Ne2 {[%emt 0:00:00]} Bc6 {[%emt 0:02:17]} 43. Rc1 {[%emt 0:00:00]} Bd7
{[%emt 0:02:23]} 44. Bc5 {[%emt 0:00:00]} Bh6 {[%emt 0:09:07]} 45. Rc3 {
[%emt 0:00:00]} Bf5 {[%emt 0:02:10]} 46. Be3 {[%emt 0:00:00]} Bf8 {[%emt 0:00:
00]} 47. Nd4 {[%emt 0:00:00]} Bb1 {[%emt 0:01:04]} 48. a4 {[%emt 0:00:00]} Be4
{[%emt 0:03:19]} 49. Nb5 {[%emt 0:00:00]} Bb4 {[%emt 0:01:38]} 50. Rc4 {
[%emt 0:00:00]} Bd5 {[%emt 0:00:40]} 51. Rd4 {[%emt 0:00:00]} Ke6 {[%emt 0:00:
00]} (51... Bxb3 $2 52. Rxb4 $1 axb4 53. Nd6+ Ke6 54. Nxb7 $18) 52. Rd3 {
[%emt 0:00:00]} Rd7 {[%emt 0:03:22]} 53. Bd2 {[%emt 0:02:12]} Bxd2 {[%emt 0:01:
22]} 54. Rxd2 $14 {[%emt 0:00:06] Endgame KRB-KRN} Rb7 {[%emt 0:00:39]} 55. Rd3
{[%emt 0:00:30]} f5 {[%emt 0:01:14]} 56. f3 {[%emt 0:00:00]} g5 {[%emt 0:00:15]
} 57. Kf2 {[%emt 0:01:53]} f4 {[%emt 0:00:17]} 58. Ke1 {[%emt 0:00:45]} h5 {
[%emt 0:00:26]} 59. Kf2 {[%emt 0:01:05]} Ke5 {[%emt 0:00:00]} 60. Rc3 {[%emt 0:
00:10]} Kf6 {[%emt 0:00:45]} 61. Rc5 {[%emt 0:02:03]} Bxb3 {[%emt 0:00:27]} 62.
Nd6 {[%emt 0:00:05][%csl Ya5,Yb7]} Rb4 {[%emt 0:00:00]} (62... Ra7 $1 $11 {
keeps the balance.}) 63. Ne4+ $16 {[%emt 0:00:07]} Ke7 {[%emt 0:00:32]} 64.
Re5+ {[%emt 0:00:22]} (64. Nxg5 Rxa4 65. g4 fxg3+ 66. Kxg3 h4+ 67. Kf2 Ra1 $17)
(64. Rxa5 $16 {Re5+ is the strong threat.} Bxa4 65. Re5+ (65. Rxg5 Rb2+ 66. Kg1
Rb5 $18) (65. Nxg5 Bc2 $16) 65... Kd7 66. Rxg5) 64... Kf7 $2 {[%emt 0:00:56]} (
64... Kd8 $1 $14) 65. Rxa5 $18 {[%emt 0:01:10] Strongly threatening Rb5.} ({
And not} 65. Rxg5 Rxa4 66. Rf5+ (66. Rxh5 Ra2+ 67. Kg1 a4 $11) 66... Ke7 $11)
65... g4 {[%emt 0:00:42]} 66. Rxh5 $2 {[%emt 0:00:45]} (66. Rb5 $18 gxh3 67.
Nd6+ (67. Rxb4 h2 $11) (67. Rxh5 Bxa4 68. gxh3 Rb2+ 69. Ke1 Bc2 $14) 67... Kg6
68. gxh3 (68. Rxb4 h2 $11)) 66... g3+ $1 $14 {[%emt 0:00:24]} 67. Ke1 {[%emt 0:
00:05]} Rxa4 {[%emt 0:00:35]} 68. Rf5+ $1 {[%emt 0:00:11] White stays focused
until the end.} Ke6 {[%emt 0:00:32]} (68... Ke7 $1 $14) 69. Rxf4 $16 {[%emt 0:
00:11] Black must now prevent Nc5+.} Ra1+ {[%emt 0:00:24]} 70. Kd2 {[%emt 0:00:
53]} Ra2+ {[%emt 0:00:21]} 71. Ke3 {[%emt 0:00:50]} Bd5 {[%emt 0:00:38]} 72.
Nd2 {[%emt 0:00:15]} Ra3+ {[%emt 0:00:36]} 73. Ke2 {[%emt 0:00:08]} Ra1 $2 {
[%emt 0:00:24] [#]} (73... Bb7 {was called for.} 74. Rg4 Ba6+ 75. Kd1 Bd3) 74.
Rg4 $1 $18 {[%emt 0:00:17]} Bb7 {[%emt 0:00:36]} (74... Bc6 {was worth a try.}
75. Rg6+ Kd5) 75. Rxg3 {[%emt 0:01:06]} Kf5 {[%emt 0:00:05]} 76. Ne4 {[%emt 0:
00:49] And now Nd6+ would win.} Ra2+ {[%emt 0:00:00]} 77. Ke3 {[%emt 0:00:14]
aiming for Nd6+.} Ra3+ {[%emt 0:00:35]} 78. Kf2 {[%emt 0:00:08] Threatens to
win with Nd6+.} Ra2+ {[%emt 0:00:13]} 79. Kg1 {[%emt 0:00:11] Hoping for Nd6+.}
Bxe4 {[%emt 0:00:54]} (79... Ke5 $142 80. Rg7 Ba8) 80. fxe4+ {[%emt 0:00:06]}
Kxe4 {[%emt 0:00:03] KR-KR} 81. Rf3 {[%emt 0:00:00] White mates.} Rb2 {[%emt 0:
00:18]} 82. Kh2 {[%emt 0:00:15]} Ra2 {[%emt 0:00:10]} 83. h4 {[%emt 0:00:06]
[%cal Yh3h4,Yh4h5]} Ra5 {[%emt 0:00:08]} 84. Kh3 {[%emt 0:00:06]} Ra1 {[%emt 0:
00:07]} 85. Kg4 {[%emt 0:00:00]} Ra2 {[%emt 0:00:12]} 86. g3 {[%emt 0:00:31]}
Ra8 {[%emt 0:00:49]} 87. Rf4+ {[%emt 0:00:06]} Ke5 {[%emt 0:00:05]} 88. h5 {
[%emt 0:00:18]} Kd5 {[%emt 0:00:27] Weighted Error Value: White=0.10 (very
precise) /Black=0.09 (flawless)} 1-0

[Event "44th Chess Olympiad Women 2022"]
[Site "Chennai"]
[Date "2022.08.06"]
[Round "8.13"]
[White "Levitan, Ronit"]
[Black "Johansson, Viktoria"]
[Result "1-0"]
[WhiteElo "2084"]
[BlackElo "2041"]
[Annotator "NA RC"]
[PlyCount "87"]
[EventDate "2022.??.??"]
[TimeControl "60"]

1. e4 {[%emt 0:00:36]} c5 {[%emt 0:00:08]} 2. c3 {[%emt 0:00:10]} Nf6 {[%emt 0:
00:00]} 3. e5 {[%emt 0:00:06]} Nd5 {[%emt 0:00:08]} 4. d4 {[%emt 0:00:14]} cxd4
{[%emt 0:00:13]} 5. cxd4 {[%emt 0:00:07]} Nc6 {[%emt 0:00:40]} 6. Nf3 {[%emt 0:
00:00]} d6 {[%emt 0:01:10]} 7. Bc4 {[%emt 0:00:19]} Nb6 {[%emt 0:00:46]} 8. Bb5
{[%emt 0:00:12]} dxe5 {[%emt 0:00:43]} 9. Nxe5 {[%emt 0:00:34]} Bd7 {[%emt 0:
00:00]} 10. Nxd7 {[%emt 0:00:21]} Qxd7 {[%emt 0:00:05]} 11. Nc3 {[%emt 0:00:13]
} e6 {[%emt 0:00:28]} 12. O-O {[%emt 0:00:12]} Be7 {[%emt 0:01:49]} 13. Qg4 {
[%emt 0:00:21]} O-O {[%emt 0:00:34]} 14. Bh6 {[%emt 0:00:37]} Bf6 {[%emt 0:00:
00]} 15. Bxc6 {[%emt 0:00:28]} bxc6 {[%emt 0:00:04]} 16. Rfd1 {[%emt 0:00:28]}
Qe7 {[%emt 0:03:36]} 17. Ne4 {[%emt 0:01:12]} Kh8 {[%emt 0:00:19]} 18. Bg5 {
[%emt 0:01:08]} Bxg5 {[%emt 0:00:26]} 19. Qxg5 {[%emt 0:00:17]} Qxg5 {[%emt 0:
00:00]} 20. Nxg5 {[%emt 0:00:07]} Nd5 {[%emt 0:03:20]} 21. Rac1 {[%emt 0:03:37]
} h6 {[%emt 0:00:43]} 22. Nf3 {[%emt 0:00:10]} Rab8 {[%emt 0:04:22]} 23. Rd2 {
[%emt 0:00:33]} Rfc8 {[%emt 0:29:23]} 24. Ne5 {[%emt 0:03:26]} Rc7 {[%emt 0:00:
00]} 25. Rxc6 {[%emt 0:12:24]} Rxc6 {[%emt 0:08:24]} 26. Nxc6 {[%emt 0:00:09]}
Rc8 {[%emt 0:02:50]} 27. Rc2 {[%emt 0:00:31]} a5 {[%emt 0:06:38]} 28. Rc5 {
[%emt 0:05:23]} a4 {[%emt 0:00:26]} 29. g3 {[%emt 0:05:44]} Rc7 {[%emt 0:03:52]
} 30. Na5 {[%emt 0:39:38]} Ra7 {[%emt 0:02:27]} 31. a3 {[%emt 0:00:18]} Nb6 {
[%emt 0:08:21]} 32. Rb5 {[%emt 0:02:57]} Ra6 {[%emt 0:01:31]} 33. Kf1 {[%emt 0:
00:00]} Kg8 {[%emt 0:04:33]} 34. Ke2 {[%emt 0:00:06]} Kf8 {[%emt 0:00:18]} 35.
Kd3 {[%emt 0:00:05]} Ke8 {[%emt 0:00:27]} 36. f4 {[%emt 0:05:34]} Kd7 {[%emt 0:
00:00]} 37. f5 {[%emt 0:01:22]} exf5 {[%emt 0:01:55]} 38. Rxf5 {[%emt 0:01:54]}
f6 {[%emt 0:00:03]} 39. Rb5 {[%emt 0:00:10]} Kd6 {[%emt 0:01:11]} 40. Ke4 {
[%emt 0:01:29]} g6 {[%emt 0:00:56]} 41. Rxb6+ {[%emt 0:31:52]} Rxb6 {[%emt 0:
00:00]} 42. Nc4+ {[%emt 0:00:05]} Kc6 {[%emt 0:00:16]} 43. Nxb6 {[%emt 0:00:05]
} Kxb6 {[%emt 0:00:02]} 44. Kd5 {[%emt 0:00:08]} 1-0